fUSD/lending_fUSD_20250106
["ID","MTS","AMOUNT","RATE_DAILY","PERIOD"]
[347867034,1736171446732,-144.97282176,0.00011566,2]
[347867035,1736171446743,-150.0,0.00011568,2]
[347867036,1736171446752,-150.0,0.00011568,2]
[347867037,1736171446762,-150.0,0.00011569,2]
[347867038,1736171446771,-150.0,0.00011571,2]
[347867039,1736171446780,-150.0,0.00011572,2]
[347867040,1736171446790,-150.0,0.00011574,2]
[347867041,1736171446799,-150.0,0.00011575,2]
[347867042,1736171446809,-150.0,0.00011576,2]
[347867043,1736171446819,-150.0,0.00011577,2]
[347867044,1736171446828,-4.07387051,0.0001158,2]
[347867045,1736171446840,-145.92612949,0.0001158,2]
[347867046,1736171446849,-150.0,0.00011587,2]
[347867047,1736171446859,-150.0,0.00011589,2]
[347867048,1736171446869,-150.0,0.0001159,2]
[347867049,1736171446879,-150.0,0.00011595,2]
[347867050,1736171446888,-150.0,0.00011596,2]
[347867051,1736171446898,-150.0,0.00011604,2]
[347867052,1736171446908,-150.0,0.0001161,2]
[347867053,1736171446918,-150.0,0.0001161,2]
[347867054,1736171446927,-150.0,0.00011617,2]
[347867055,1736171446936,-150.0,0.00011618,2]
[347867056,1736171446945,-150.0,0.00011618,2]
[347867057,1736171446954,-150.0,0.0001162,2]
[347867058,1736171446963,-150.0,0.00011623,2]
[347867059,1736171446973,-150.0,0.00011625,2]
[347867060,1736171446983,-150.0,0.00011626,2]
[347867061,1736171446992,-150.0,0.00011627,2]
[347867062,1736171447002,-150.0,0.00011634,2]
[347867063,1736171447011,-150.0,0.00011637,2]
[347867064,1736171447021,-150.0,0.00011637,2]
[347867065,1736171447031,-150.0,0.00011649,2]
[347867066,1736171447041,-150.0,0.00011649,2]
[347867067,1736171447050,-150.0,0.00011652,2]
[347867068,1736171447060,-150.0,0.00011655,2]
[347867069,1736171447069,-150.0,0.00011656,2]
[347867070,1736171447078,-150.0,0.0001166,2]
[347867071,1736171447088,-150.0,0.00011661,2]
[347867072,1736171447097,-150.0,0.00011662,2]
[347867073,1736171447107,-150.0,0.0001167,2]
[347867074,1736171447117,-150.0,0.0001167,2]
[347867075,1736171447127,-150.0,0.00011671,2]
[347867076,1736171447136,-150.0,0.00011678,2]
[347867077,1736171447145,-150.0,0.00011678,2]
[347867078,1736171447155,-150.0,0.00011681,2]
[347867079,1736171447164,-150.0,0.00011681,2]
[347867080,1736171447173,-150.0,0.00011682,2]
[347867081,1736171447182,-150.0,0.00011683,2]
[347867082,1736171447191,-150.0,0.00011687,2]
[347867083,1736171447200,-150.0,0.00011687,2]
[347867084,1736171447210,-150.0,0.00011688,2]
[347867085,1736171447219,-150.0,0.00011688,2]
[347867086,1736171447228,-974.73156542,0.000117,4]
[347867087,1736171447237,-161.05129517,0.00011701,2]
[347867088,1736171447247,-500.0,0.00011708,2]
[347867089,1736171447256,-500.0,0.00011708,2]
[347867090,1736171447265,-500.0,0.00011708,2]
[347867091,1736171447275,-500.0,0.00011708,2]
[347867092,1736171447284,-300.0,0.00011708,2]
[347867093,1736171447293,-300.0,0.00011708,2]
[347867094,1736171447303,-300.0,0.00011708,2]
[347867095,1736171447312,-300.0,0.00011708,2]
[347867096,1736171447321,-431.06553382,0.00011708,2]
[347867097,1736171447331,-162925.81575356,0.00011708,2]
[347867098,1736171447340,-4831.4010975,0.00011712,2]
[347867099,1736171447349,-178.5412676,0.00011712,2]
[347867100,1736171447359,-13362.456491,0.0001172,2]
[347867101,1736171447369,-40309.74665194,0.00011748,3]
[347867102,1736171447378,-11590.89833644,0.0001175,2]
[347867103,1736171447388,-228.82996754,0.00011762,2]
[347867104,1736171447398,-160.78565146,0.00011763,2]
[347867105,1736171447407,-151.59989468,0.00011765,2]
[347867106,1736171447417,-500.0,0.00011778,2]
[347867107,1736171447426,-1084.23,0.00011778,2]
[347867108,1736171447436,-193.11446952,0.00011778,2]
[347867109,1736171447445,-1433.13,0.00011778,2]
[347867110,1736171447454,-500.0,0.00011778,2]
[347867111,1736171447463,-500.0,0.00011778,2]
[347867112,1736171447472,-750.98,0.00011778,2]
[347867113,1736171447482,-606.68,0.00011778,2]
[347867114,1736171447491,-1706.94,0.00011778,2]
[347867115,1736171447500,-500.0,0.00011779,2]
[347867116,1736171447509,-500.0,0.00011779,2]
[347867117,1736171447519,-501.56,0.00011779,2]
[347867118,1736171447528,-1483.24,0.00011779,2]
[347867119,1736171447537,-500.0,0.00011779,2]
[347867120,1736171447546,-500.0,0.00011779,2]
[347867121,1736171447555,-500.0,0.00011779,2]
[347867122,1736171447564,-500.0,0.00011779,2]
[347867123,1736171447573,-500.0,0.00011779,2]
[347867124,1736171447583,-907.7,0.00011779,2]
[347867125,1736171447592,-500.0,0.00011779,2]
[347867126,1736171447601,-500.0,0.00011779,2]
[347867127,1736171447610,-235.27030847,0.00011779,2]
[347867128,1736171447624,-500.0,0.00011779,2]
[347867129,1736171447633,-500.0,0.00011779,2]
[347867130,1736171447642,-500.0,0.00011779,2]
[347867131,1736171447652,-959.284102,0.00011779,2]
[347867132,1736171447661,-371.00657667,0.00011779,2]
[347867133,1736171447670,-500.0,0.00011779,2]
[347867134,1736171447680,-500.0,0.00011779,2]
[347867135,1736171447690,-497.85770879,0.00011779,2]
[347867136,1736171447702,-1449.71229121,0.00011779,2]
[347867137,1736171447711,-1004.87682,0.00011779,2]
[347867138,1736171447721,-500.0,0.00011779,2]
[347867139,1736171447730,-500.0,0.00011779,2]
[347867140,1736171447739,-500.0,0.00011779,2]
[347867141,1736171447747,-1741.49,0.00011779,2]
[347867142,1736171447756,-705.92088878,0.00011779,2]
[347867143,1736171513479,-680.8,0.00010221,2]
[347867144,1736171513501,-680.55,0.00010221,2]
[347867145,1736171513524,-1000.0,0.00010297,2]
[347867146,1736171513547,-1227.02,0.00010297,2]
[347867147,1736171513569,-500.0,0.00010297,2]
[347867148,1736171513591,-680.8,0.00010495,2]
[347867149,1736171513614,-680.55,0.00010495,2]
[347867150,1736171513635,-837.74,0.00010571,2]
[347867151,1736171513661,-712.54,0.00010571,2]
[347867154,1736171835264,493.27,8.219e-05,2]
[347867173,1736172632819,-14.41647896,9.425e-05,2]
[347867175,1736172632831,-397.81352104,9.425e-05,2]
[347867177,1736172632840,-284.79148954,9.425e-05,2]
[347867179,1736172632852,-217.57639004,9.425e-05,2]
[347867181,1736172632861,-305.47,9.747e-05,2]
[347867183,1736172632871,-260.86,9.784e-05,2]
[347867185,1736172632880,-250.0,9.806e-05,2]
[347867188,1736172632889,-1224.3025111,9.878e-05,2]
[347867190,1736172632900,-10045.96420378,9.878e-05,2]
[347867193,1736172632912,-12629.73328512,9.878e-05,2]
[347867195,1736172632921,-7660.5383,9.9e-05,2]
[347867197,1736172632931,-200.0,9.936e-05,2]
[347867199,1736172632940,-250.0,9.953e-05,2]
[347867201,1736172632949,-150.0,9.998e-05,2]
[347867203,1736172632959,-654.17,9.999e-05,2]
[347867205,1736172632968,-1852.58,9.999e-05,2]
[347867206,1736172632977,-500.0,9.999e-05,2]
[347867209,1736172632987,-924.35,9.999e-05,2]
[347867210,1736172632996,-1215.11,9.999e-05,2]
[347867212,1736172633005,-500.0,9.999e-05,2]
[347867215,1736172633015,-499.47328673,9.999e-05,2]
[347867217,1736172633025,-646.65,9.999e-05,2]
[347867219,1736172633034,-500.0,9.999e-05,2]
[347867221,1736172633043,-526.4,9.999e-05,2]
[347867223,1736172633053,-863.31,9.999e-05,2]
[347867225,1736172633063,-902.64,9.999e-05,2]
[347867227,1736172633073,-777.25,9.999e-05,2]
[347867228,1736172633082,-155.54927767,9.999e-05,2]
[347867230,1736172633091,-500.0,9.999e-05,2]
[347867232,1736172633101,-500.0,9.999e-05,2]
[347867235,1736172633111,-543.31,9.999e-05,2]
[347867236,1736172633121,-834.3,9.999e-05,2]
[347867238,1736172633131,-1643.81,9.999e-05,2]
[347867241,1736172633140,-500.0,9.999e-05,2]
[347867242,1736172633149,-500.0,9.999e-05,2]
[347867244,1736172633159,-500.0,9.999e-05,2]
[347867246,1736172633168,-500.0,9.999e-05,2]
[347867249,1736172633178,-500.0,9.999e-05,2]
[347867250,1736172633187,-940.025577,9.999e-05,2]
[347867253,1736172633196,-500.0,9.999e-05,2]
[347867254,1736172633205,-165.163599,9.999e-05,2]
[347867256,1736172633215,-500.0,9.999e-05,2]
[347867259,1736172633224,-500.0,9.999e-05,2]
[347867261,1736172633233,-500.0,9.999e-05,2]
[347867263,1736172633243,-76223.99661822,0.0001,2]
[347867265,1736172633255,-2093.0,0.0001,2]
[347867273,1736172633327,-430.68063875,0.0001,2]
[347867276,1736172633346,-905.59839347,0.0001,2]
[347867281,1736172633388,-3403.871844,0.0001,2]
[347867378,1736172638075,-626.92,9.999e-05,2]
[347867379,1736172638085,-269.39354805,9.999e-05,2]
[347867380,1736172638097,-51.26045732,9.999e-05,2]
[347867381,1736172638107,-1407.97,9.999e-05,2]
[347867382,1736172638117,-753.35341907,0.0001,2]
[347867383,1736172638164,-384.47,0.0001,2]
[347867384,1736172638177,-1496.98676046,0.0001,2]
[347867385,1736172638257,-412.74449913,0.0001,2]
[347867386,1736172638271,-600.2846125,0.0001,2]
[347867387,1736172638282,-27815.77645618,0.0001,2]
[347867553,1736172640157,-340.50083502,0.0001,2]
[347867556,1736172640178,-300.55411134,0.0001,2]
[347867559,1736172640199,-512.27802841,0.0001,2]
[347867562,1736172640219,-2068.63438604,0.0001,2]
[347867565,1736172640231,-2395.98,0.0001,2]
[347867567,1736172640243,-7518.688525,0.0001,2]
[347867577,1736172640338,-8096.31067089,0.0001,2]
[347867579,1736172640348,-10503.38682421,0.0001,2]
[347867582,1736172640359,-775.59031934,0.0001,2]
[347867594,1736172640469,-691.15462967,0.0001,2]
[347867596,1736172640480,-65141.91699345,0.0001,2]
[347867598,1736172640490,-216.74094268,0.0001,2]
[347867600,1736172640499,-217.00348386,0.0001,2]
[347867602,1736172640509,-151.22258682,0.0001,2]
[347867604,1736172640519,-151.2225868,0.00010076,2]
[347867606,1736172640528,-176.25,0.00010137,2]
[347867609,1736172640538,-500.0,0.00010193,2]
[347867611,1736172640547,-500.0,0.00010221,2]
[347867613,1736172640556,-500.0,0.00010221,2]
[347867615,1736172640566,-500.0,0.00010221,2]
[347867617,1736172640576,-1716.86,0.00010221,2]
[347867619,1736172640585,-500.0,0.00010221,2]
[347867620,1736172640594,-500.0,0.00010221,2]
[347867622,1736172640604,-662.47,0.00010221,2]
[347867624,1736172640613,-1000.0,0.0001025,2]
[347867627,1736172640624,-151.2225868,0.00010253,2]
[347867629,1736172640633,-1170.34791344,0.00010273,2]
[347867631,1736172640645,-682.23208656,0.00010273,2]
[347867633,1736172640655,-500.0,0.00010273,2]
[347867635,1736172640664,-924.35,0.00010273,2]
[347867637,1736172640673,-1215.11,0.00010273,2]
[347867639,1736172640683,-55.40791344,0.00010273,2]
[347867642,1736172640702,-444.59208656,0.00010273,2]
[347867644,1736172640711,-646.65,0.00010273,2]
[347867646,1736172640720,-500.0,0.00010273,2]
[347867648,1736172640730,-526.4,0.00010273,2]
[347867650,1736172640739,-863.31,0.00010273,2]
[347867652,1736172640749,-902.64,0.00010273,2]
[347867654,1736172640758,-777.25,0.00010273,2]
[347867656,1736172640768,-500.0,0.00010273,2]
[347867658,1736172640777,-500.0,0.00010273,2]
[347867660,1736172640787,-834.3,0.00010273,2]
[347867662,1736172640797,-500.0,0.00010273,2]
[347867664,1736172640806,-500.0,0.00010273,2]
[347867666,1736172640816,-500.0,0.00010273,2]
[347867668,1736172640826,-500.0,0.00010273,2]
[347867670,1736172640836,-500.0,0.00010273,2]
[347867672,1736172640845,-73.05887587,0.00010273,2]
[347867674,1736172640857,-866.96670113,0.00010273,2]
[347867676,1736172640866,-500.0,0.00010273,2]
[347867678,1736172640876,-626.92,0.00010273,2]
[347867680,1736172640885,-1407.97,0.00010273,2]
[347867682,1736172640895,-1099.1,0.00010285,2]
[347867684,1736172640904,-500.0,0.0001035,2]
[347867686,1736172640914,-151.2225868,0.00010429,2]
[347867688,1736172640925,-500.0,0.0001047,2]
[347867690,1736172640935,-500.0,0.0001047,2]
[347867692,1736172640944,-493.27,0.00010478,2]
[347867694,1736172640954,-500.0,0.00010494,2]
[347867696,1736172640964,-1236.04,0.00010494,2]
[347867698,1736172640974,-288.80770995,0.00010494,2]
[347867700,1736172640984,-500.0,0.00010494,2]
[347867703,1736172640993,-500.0,0.00010494,2]
[347867704,1736172641003,-397.58236035,0.00010494,2]
[347867707,1736172641015,-102.41763965,0.00010494,2]
[347867709,1736172641024,-397.58236035,0.00010494,2]
[347867793,1736172643126,-1575.32,9.999e-05,2]
[347867794,1736172643136,-1575.32,0.00010273,2]
[347867795,1736172643146,-102.41763965,0.00010494,2]
[347867796,1736172643155,-500.0,0.00010494,2]
[347867797,1736172643165,-500.0,0.00010494,2]
[347867798,1736172643175,-500.0,0.00010494,2]
[347867799,1736172643184,-500.0,0.00010494,2]
[347867800,1736172643194,-500.0,0.00010494,2]
[347867801,1736172643203,-500.0,0.00010494,2]
[347867802,1736172643213,-500.0,0.00010494,2]
[347867803,1736172643222,-500.0,0.00010494,2]
[347867804,1736172643231,-500.0,0.00010494,2]
[347867805,1736172643240,-500.0,0.00010494,2]
[347867806,1736172643250,-500.0,0.00010494,2]
[347867807,1736172643260,-500.0,0.00010494,2]
[347867808,1736172643274,-194.81791218,0.00010494,2]
[347867809,1736172643283,-500.0,0.00010494,2]
[347867810,1736172643292,-500.0,0.00010494,2]
[347867811,1736172643302,-368.73803725,0.00010494,2]
[347867812,1736172643314,-131.26196275,0.00010494,2]
[347867813,1736172643323,-612.15254192,0.00010494,2]
[347867814,1736172643333,-500.0,0.00010494,2]
[347867815,1736172643343,-500.0,0.00010494,2]
[347867816,1736172643353,-500.0,0.00010494,2]
[347867817,1736172643362,-500.0,0.00010494,2]
[347867818,1736172643371,-500.0,0.00010494,2]
[347867819,1736172643380,-500.0,0.00010494,2]
[347867820,1736172643390,-842.2,0.00010494,2]
[347867821,1736172643399,-500.0,0.00010494,2]
[347867822,1736172643409,-500.0,0.00010494,2]
[347867823,1736172643418,-500.0,0.00010494,2]
[347867824,1736172643427,-502.7078102,0.00010494,2]
[347867825,1736172643436,-502.32894652,0.00010494,2]
[347867826,1736172643446,-504.84332597,0.00010494,2]
[347867827,1736172643457,-495.95,0.00010494,2]
[347867828,1736172643467,-1196.71,0.00010494,2]
[347867830,1736172643476,-500.0,0.00010494,2]
[347867832,1736172643485,-500.0,0.00010494,2]
[347867834,1736172643495,-500.0,0.00010494,2]
[347867836,1736172643504,-346.04,0.00010494,2]
[347867838,1736172643514,-1613.49,0.00010494,2]
[347867840,1736172643523,-500.0,0.00010494,2]
[347867842,1736172643532,-500.0,0.00010494,2]
[347867844,1736172643542,-500.0,0.00010494,2]
[347867846,1736172643552,-500.0,0.00010494,2]
[347867848,1736172643561,-210.9,0.00010494,2]
[347867850,1736172643570,-500.0,0.00010494,2]
[347867852,1736172643580,-639.86,0.00010494,2]
[347867854,1736172643590,-637.53471345,0.00010494,2]
[347867856,1736172643599,-227.30136701,0.00010494,2]
[347867858,1736172643609,-500.0,0.00010494,2]
[347867860,1736172643618,-500.0,0.00010494,2]
[347867862,1736172643627,-500.0,0.00010494,2]
[347867864,1736172643637,-516.63,0.00010494,2]
[347867866,1736172643647,-500.0,0.00010494,2]
[347867868,1736172643657,-500.0,0.00010494,2]
[347867870,1736172643666,-500.0,0.00010494,2]
[347867872,1736172643675,-160.97852053,0.00010494,2]
[347867874,1736172643684,-500.0,0.00010494,2]
[347867876,1736172643694,-500.0,0.00010494,2]
[347867878,1736172643703,-500.0,0.00010494,2]
[347867880,1736172643713,-500.97262518,0.00010494,2]
[347867882,1736172643722,-500.0,0.00010494,2]
[347867884,1736172643732,-500.0,0.00010494,2]
[347867886,1736172643741,-500.0,0.00010494,2]
[347867888,1736172643751,-500.0,0.00010494,2]
[347867890,1736172643761,-500.0,0.00010494,2]
[347867892,1736172643770,-500.0,0.00010494,2]
[347867894,1736172643780,-539.39,0.00010494,2]
[347867896,1736172643792,-488.8945691,0.00010494,2]
[347867898,1736172643802,-172.16,0.00010494,2]
[347867900,1736172643812,-500.0,0.00010494,2]
[347867902,1736172643822,-603.7,0.00010494,2]
[347867904,1736172643831,-634.31,0.00010494,2]
[347867906,1736172643841,-500.0,0.00010494,2]
[347867908,1736172643851,-241.7,0.00010494,2]
[347867910,1736172643861,-514.15,0.00010494,2]
[347867912,1736172643870,-500.0,0.00010494,2]
[347867914,1736172643879,-375.0,0.00010494,2]
[347867916,1736172643889,-500.0,0.00010494,2]
[347867918,1736172643898,-570.51,0.00010494,2]
[347867920,1736172643907,-607.22,0.00010494,2]
[347867922,1736172643916,-500.0,0.00010494,2]
[347867924,1736172643926,-523.04,0.00010494,2]
[347867926,1736172643936,-500.0,0.00010494,2]
[347867928,1736172643945,-500.0,0.00010494,2]
[347867930,1736172643956,-530.14,0.00010494,2]
[347867932,1736172643965,-600.94,0.00010494,2]
[347867934,1736172643974,-240.35,0.00010494,2]
[347867936,1736172643984,-500.0,0.00010494,2]
[347867938,1736172643993,-247.38406077,0.00010495,2]
[347867940,1736172644002,-500.0,0.00010495,2]
[347867942,1736172644011,-500.0,0.00010495,2]
[347867943,1736172644022,-1716.86,0.00010495,2]
[347867945,1736172644031,-500.0,0.00010495,2]
[347867947,1736172644040,-500.0,0.00010495,2]
[347867949,1736172644051,-662.47,0.00010495,2]
[347867951,1736172644061,-1852.58,0.00010547,2]
[347867954,1736172644071,-500.0,0.00010547,2]
[347867956,1736172644080,-924.35,0.00010547,2]
[347867957,1736172644090,-1215.11,0.00010547,2]
[347867960,1736172644099,-500.0,0.00010547,2]
[347867961,1736172644109,-646.65,0.00010547,2]
[347867963,1736172644119,-500.0,0.00010547,2]
[347867965,1736172644128,-526.4,0.00010547,2]
[347867967,1736172644138,-863.31,0.00010547,2]
[347867969,1736172644147,-902.64,0.00010547,2]
[347867971,1736172644157,-777.25,0.00010547,2]
[347867974,1736172644166,-500.0,0.00010547,2]
[347867975,1736172644176,-500.0,0.00010547,2]
[347867978,1736172644186,-834.3,0.00010547,2]
[347867980,1736172644195,-500.0,0.00010547,2]
[347867981,1736172644205,-500.0,0.00010547,2]
[347867983,1736172644215,-500.0,0.00010547,2]
[347867985,1736172644224,-500.0,0.00010547,2]
[347867987,1736172644234,-500.0,0.00010547,2]
[347867989,1736172644244,-940.025577,0.00010547,2]
[347867992,1736172644254,-500.0,0.00010547,2]
[347867994,1736172644269,-626.92,0.00010547,2]
[347867996,1736172644280,-1407.97,0.00010547,2]
[347867998,1736172644289,-500.0,0.00010571,2]
[347868000,1736172644300,-1175.9,0.00010571,2]
[347868002,1736172644310,-824.04,0.00010571,2]
[347868004,1736172644320,-150.0,0.00010603,2]
[347868006,1736172644330,-150.0,0.00010603,2]
[347868008,1736172644340,-150.965022,0.00010603,2]
[347868010,1736172644350,-150.0,0.00010603,2]
[347868012,1736172644360,-151.2225868,0.00010606,2]
[347868014,1736172644369,-619.93917414,0.00010696,2]
[347868016,1736172644379,-500.0,0.00010696,2]
[347868018,1736172644388,-309.60354163,0.00010696,2]
[347868020,1736172644398,-500.0,0.00010696,2]
[347868022,1736172644407,-500.0,0.00010696,2]
[347868024,1736172644416,-500.0,0.00010696,2]
[347868026,1736172644426,-263.48382774,0.00010696,2]
[347868028,1736172644435,-98783.0,0.00010697,2]
[347868030,1736172644445,-251.65078361,0.000107,2]
[347868032,1736172644454,-500.0,0.00010744,2]
[347868034,1736172644464,-1236.04,0.00010768,2]
[347868036,1736172644474,-500.0,0.00010768,2]
[347868038,1736172644484,-502.4466633,0.00010768,2]
[347868040,1736172644493,-500.0,0.00010768,2]
[347868042,1736172644503,-500.0,0.00010768,2]
[347868044,1736172644513,-500.0,0.00010768,2]
[347868046,1736172644522,-500.0,0.00010768,2]
[347868048,1736172644532,-500.0,0.00010768,2]
[347868050,1736172644543,-500.0,0.00010768,2]
[347868052,1736172644553,-500.0,0.00010768,2]
[347868054,1736172644563,-500.0,0.00010768,2]
[347868056,1736172644573,-500.0,0.00010768,2]
[347868058,1736172644583,-500.0,0.00010768,2]
[347868059,1736172644593,-500.0,0.00010768,2]
[347868060,1736172644602,-500.0,0.00010768,2]
[347868061,1736172644612,-500.0,0.00010768,2]
[347868062,1736172644622,-842.2,0.00010768,2]
[347868063,1736172644632,-1196.71,0.00010768,2]
[347868064,1736172644642,-500.0,0.00010768,2]
[347868066,1736172644652,-1613.49,0.00010768,2]
[347868068,1736172644661,-500.0,0.00010768,2]
[347868070,1736172644672,-500.0,0.00010768,2]
[347868072,1736172644681,-500.0,0.00010768,2]
[347868074,1736172644691,-516.63,0.00010768,2]
[347868076,1736172644700,-500.0,0.00010768,2]
[347868078,1736172644710,-187.98034649,0.00010768,2]
[347868080,1736172644720,-500.0,0.00010768,2]
[347868082,1736172644729,-500.0,0.00010768,2]
[347868084,1736172644739,-500.0,0.00010768,2]
[347868086,1736172644749,-500.0,0.00010768,2]
[347868088,1736172644759,-500.0,0.00010768,2]
[347868090,1736172644769,-500.0,0.00010769,2]
[347868092,1736172644778,-500.0,0.00010769,2]
[347868094,1736172644787,-1716.86,0.00010769,2]
[347868096,1736172644798,-547.14219746,0.00010769,2]
[347868098,1736172644807,-500.0,0.00010769,2]
[347868100,1736172644816,-662.47,0.00010769,2]
[347868102,1736172644826,-151.2225868,0.00010782,2]
[347868104,1736172644835,-1852.58,0.00010821,2]
[347868106,1736172644844,-500.0,0.00010821,2]
[347868107,1736172644854,-924.35,0.00010821,2]
[347868109,1736172644864,-1215.11,0.00010821,2]
[347868111,1736172644874,-500.0,0.00010821,2]
[347868113,1736172644884,-646.65,0.00010821,2]
[347868115,1736172644894,-500.0,0.00010821,2]
[347868117,1736172644903,-526.4,0.00010821,2]
[347868119,1736172644912,-863.31,0.00010821,2]
[347868121,1736172644922,-902.64,0.00010821,2]
[347868123,1736172644932,-777.25,0.00010821,2]
[347868125,1736172644941,-500.0,0.00010821,2]
[347868127,1736172644951,-500.0,0.00010821,2]
[347868129,1736172644960,-834.3,0.00010821,2]
[347868131,1736172644970,-500.0,0.00010821,2]
[347868133,1736172644979,-500.0,0.00010821,2]
[347868135,1736172644988,-500.0,0.00010821,2]
[347868137,1736172644998,-500.0,0.00010821,2]
[347868139,1736172645007,-500.0,0.00010821,2]
[347868141,1736172645017,-940.025577,0.00010821,2]
[347868143,1736172645026,-500.0,0.00010821,2]
[347868144,1736172645036,-626.92,0.00010821,2]
[347868145,1736172645046,-1407.97,0.00010821,2]
[347868146,1736172645055,-150.0,0.00010838,2]
[347868147,1736172645066,-1062.461681,0.00010843,2]
[347868148,1736172645075,-1559.15,0.00010843,2]
[347868149,1736172645084,-500.0,0.00010843,2]
[347868150,1736172645094,-500.0,0.00010843,2]
[347868151,1736172645103,-500.0,0.00010843,2]
[347868152,1736172645113,-500.0,0.00010843,2]
[347868153,1736172645122,-964.5,0.00010843,2]
[347868154,1736172645132,-714.72,0.00010843,2]
[347868155,1736172645141,-670.57,0.00010843,2]
[347868156,1736172645152,-1682.35,0.00010843,2]
[347868157,1736172645161,-984.29,0.00010843,2]
[347868158,1736172645171,-3446.14,0.00010843,2]
[347868159,1736172645180,-1023.98,0.00010843,2]
[347868160,1736172645190,-1722.97,0.00010843,2]
[347868161,1736172645200,-500.0,0.00010845,2]
[347868162,1736172645209,-1175.9,0.00010845,2]
[347868163,1736172645218,-824.04,0.00010845,2]
[347868164,1736172645227,-628.04486365,0.00010955,2]
[347868165,1736172645238,-500.0,0.00010955,2]
[347868166,1736172645247,-500.0,0.00010955,2]
[347868167,1736172645256,-500.0,0.00010955,2]
[347868168,1736172645267,-500.0,0.00010955,2]
[347868169,1736172645277,-314.14,0.00010956,2]
[347868170,1736172645286,-263.29073739,0.00010956,2]
[347868171,1736172645298,-500.0,0.00010956,2]
[347868172,1736172645309,-500.0,0.00010956,2]
[347868173,1736172645319,-500.0,0.00010956,2]
[347868174,1736172645328,-500.0,0.00010957,2]
[347868175,1736172645338,-962.39,0.00010957,2]
[347868176,1736172645348,-500.0,0.00010957,2]
[347868177,1736172645358,-624.07,0.00010957,2]
[347868178,1736172645367,-623.83,0.00010957,2]
[347868179,1736172645376,-1338.64,0.00010957,2]
[347868180,1736172645385,-705.89,0.00010957,2]
[347868181,1736172645395,-1978.57,0.00010957,2]
[347868182,1736172645404,-849.93,0.00010957,2]
[347868183,1736172645413,-1272.49,0.00010957,2]
[347868184,1736172645423,-704.07,0.00010957,2]
[347868185,1736172645433,-500.0,0.00010957,2]
[347868186,1736172645443,-754.79,0.00010957,2]
[347868187,1736172645452,-1658.69,0.00010957,2]
[347868188,1736172645462,-842.64,0.00010957,2]
[347868189,1736172645471,-151.2225868,0.00010959,2]
[347868190,1736172645480,-150.0,0.00010959,2]
[347868191,1736172645490,-400.0,0.00010986,2]
[347868192,1736172645499,-150.0,0.00010995,2]
[347868193,1736172645509,-255.0,0.00010998,2]
[347868194,1736172645518,-550.0,0.00011,2]
[347868195,1736172645527,-1520.0,0.00011,6]
[347868196,1736172645537,-260.86,0.00011007,2]
[347868197,1736172645547,-500.0,0.00011018,2]
[347868198,1736172645556,-292.64609004,0.00011025,2]
[347868199,1736172645566,-437.72,0.00011041,2]
[347868200,1736172645575,-1236.04,0.00011042,2]
[347868201,1736172645585,-500.0,0.00011042,2]
[347868202,1736172645594,-500.0,0.00011042,2]